{"text_format":"3","workbook":"xlsx","n_sheets":7,"sheets":["Seite 1","Seite 2","Attribute","Drucken","Eintragung","Kanzleidaten","Stammdaten"],"not_rendered":{"images":3,"macros":1,"defined_names":102,"comments":1},"read":"whole","date_system":"1900"}

{"sheet":"Seite 1","index":0,"n_rows":78,"n_cols":63,"rows_kept":78,"merged":[[0,6,0,15],[3,3,3,35],[3,47,3,58],[4,3,4,35],[5,3,5,35],[9,33,9,58],[12,5,12,27],[13,5,13,27],[14,5,14,27],[15,5,15,9],[15,10,15,27],[19,6,21,27],[19,31,21,51],[20,3,20,4],[27,3,27,34],[27,35,27,47],[27,48,27,58],[28,3,28,34],[29,3,29,34],[29,35,29,58],[31,3,31,34],[31,35,31,47],[31,48,31,58],[33,3,33,34],[33,35,33,58],[38,3,38,58],[38,62,38,65],[39,3,39,34],[39,35,39,58],[39,62,39,65],[40,62,40,65],[46,23,47,29],[46,47,47,53],[49,7,50,19],[49,23,50,29],[49,47,50,53],[52,7,53,19],[52,23,53,29],[55,7,56,57],[58,29,58,40],[63,24,64,34],[66,22,66,57]]}
[]
[]
[]
[{"$nulls":3},"ACHTUNG",{"$nulls":43},"Eingangsstempel"]
[{"$nulls":3},"Beachten Sie unbedingt die Hinweise in Abschnitt V. des Formulars!"]
[{"$nulls":3},"Zutreffendes bitte ankreuzen bzw. leserlich ausfüllen!"]
[]
[]
[]
[{"$nulls":5},"Finanzamt",{"$nulls":27},"Raum für Bearbeitungsvermerke"]
{"$rows_empty":9}
[{"$nulls":6},"Abtretungsanzeige",{"$nulls":24},"Verpfändungsanzeige"]
[]
[]
[]
[]
[{"$nulls":3},"I.",null,null,"Abtretende(r) / Verpfänder(in)"]
[]
[{"$nulls":3},"Familienname bzw. Firma (bei Gesellschaften)",{"$nulls":31},"Vorname",{"$nulls":12},"Geburtsdatum"]
[{"$nulls":3},""]
[{"$nulls":3},"",{"$nulls":31},"Steuernummer"]
[{"$nulls":3},"",{"$nulls":31},""]
[{"$nulls":3},"Ehegatte/Lebenspartner: Familienname",{"$nulls":31},"Vorname",{"$nulls":12},"Geburtsdatum"]
[{"$nulls":3},"",{"$nulls":31},""]
[{"$nulls":3},"Anschrift(en)"]
[{"$nulls":3},"",{"$nulls":31},""]
[]
[{"$nulls":3},"II.",null,null,"Abtretungsempfänger(in) / Pfandgläubiger(in)"]
[]
[{"$nulls":3},"Name / Firma u. Anschrift"]
[{"$nulls":3},"",{"$nulls":58},"Steuerkanzlei Stefan Penka "]
[{"$nulls":3},"",{"$nulls":31},"",{"$nulls":26},"Cranachweg 3"]
[{"$nulls":62},"93051 Regensburg"]
[{"$nulls":3},"III.",null,null,"Anzeige"]
[]
[{"$nulls":3}," Folgender Erstattungs- bzw. Vergütungsanspruch ist abgetreten / verpfändet worden:"]
[{"$nulls":3}," 1. Bezeichnung des Anspruchs:"]
[{"$nulls":23},"Kalenderjahr",{"$nulls":23},"Kalenderjahr"]
[{"$nulls":7},"Einkommensteuer-Veranlagung",{"$nulls":13},"für",{"$nulls":13},"Umsatzsteuerfestsetzung",{"$nulls":9},"für"]
[]
[{"$nulls":23},"Zeitraum",{"$nulls":23},"Monat bzw. Quartal / Jahr"]
[{"$nulls":21},"für",{"$nulls":13},"Umsatzsteuervoranmeldung",{"$nulls":9},"für"]
[]
[{"$nulls":23},"Kalenderjahr"]
[{"$nulls":21},"für"]
[]
[]
[]
[]
[]
[{"$nulls":3}," 2. Umfang der Abtretung bzw. Verpfändung:"]
[]
[{"$nulls":7},"VOLL-Abtretung / Verpfändung"]
[]
[]
[{"$nulls":7},"TEIL-Abtretung / Verpfändung in Höhe von",{"$nulls":27},"  Euro"]
[]
[]
[{"$nulls":3}," 3. Grund der Abtretung / Verpfändung:"]
[{"$nulls":5},"(kurze stichwortartige Kennzeichnung des der Abtretung zugrunde liegenden schuldrechtlichen Lebenssachverhalts)"]
[{"$nulls":3}," 4. a) Es handelt sich um eine Sicherungsabtretung oder Verpfändung als Sicherheit:"]
[]
[{"$nulls":7},"Ja",{"$nulls":4},"Nein"]
[]
[{"$nulls":3},"    b) Die Abtretung / Verpfändung erfolgte geschäftsmäßig:"]
[]
[{"$nulls":7},"Ja",{"$nulls":4},"Nein"]
[]
[{"$nulls":3},"034130/1  Abtretungsanzeige/Verpfändungsanzeige (Steuer) (07.2015)"]
[{"$nulls":44},"  "]

{"sheet":"Seite 2","index":1,"n_rows":64,"n_cols":64,"rows_kept":64,"merged":[[0,6,0,16],[2,2,2,56],[13,35,14,42],[15,5,16,38],[15,39,16,56],[17,5,17,38],[17,39,17,55],[19,5,19,55],[19,61,19,63],[21,5,21,55],[23,5,25,56],[26,12,26,27],[26,39,26,54],[28,12,28,27],[28,39,28,54],[35,4,35,55],[37,4,37,55],[39,4,39,55],[42,4,42,55],[44,4,44,55],[47,4,47,55],[49,4,49,55],[57,4,57,24],[59,4,59,54],[64,4,64,24]]}
[]
[]
[null,null,""]
[]
[]
[{"$nulls":3},"5. Der Abtretungsempfänger / Pfandgläubiger ist ein Unternehmen, dem das Betreiben von Bankgeschäften erlaubt ist:"]
[]
[{"$nulls":5},"Ja",{"$nulls":4},"Nein"]
[]
[]
[null,null,"IV. Überweisung / Verrechnung"]
[]
[{"$nulls":3},"Der abgetretene / verpfändete Betrag soll ausgezahlt werden durch:"]
[]
[]
[{"$nulls":5},"Überweisung auf Konto IBAN (International Bank Account Number; internationale Kontonummer)",{"$nulls":33},"BIC (Business Identifier Code; internationale Bankleitzahl",{"$nulls":21},"IBAN",null,"BIC"]
[]
[{"$nulls":61},"",null,""]
[{"$nulls":5},"Geldinstitut (Zweigstelle) und Ort",{"$nulls":55},"Bankname"]
[{"$nulls":5},"",{"$nulls":55},""]
[{"$nulls":5},"Kontoinhaber, wenn abweichend von Abschnitt II.",{"$nulls":55},"Abw. Kontoinhaber"]
[{"$nulls":5},"",{"$nulls":55},""]
[]
[{"$nulls":5},"Verrechnung mit Steuerschulden des / der Abtretungsempfängers(in) / Pfandgläubigers(in)"]
[]
[]
[{"$nulls":5},"beim Finanzamt",{"$nulls":26},"Steuernummer"]
[]
[{"$nulls":5},"Steuerart",{"$nulls":26},"Zeitraum"]
[{"$nulls":5},"(für genauere Anweisungen bitte einen gesonderten Verrechnungsantrag beifügen!)"]
[]
[null,null,"V. Wichtige Hinweise"]
[]
[{"$nulls":4},"Unterschreiben Sie bitte kein Formular, das nicht ausgefüllt ist oder dessen Inhalt Sie nicht verstehen!"]
[]
[{"$nulls":4},"Prüfen Sie bitte sorgfältig, ob sich eine Abtretung für Sie überhaupt lohnt! Denn das Finanzamt bemüht sich, Erstattungs- und Vergütungsansprüche schnell zu bearbeiten."]
[]
[{"$nulls":4},"Vergleichen Sie nach Erhalt des Steuerbescheids den Erstattungsbetrag mit dem Betrag, den Sie gegebenenfalls im Wege der Vorfinanzierung erhalten haben."]
[]
[{"$nulls":4},"Denken Sie daran, dass die Abtretung aus unterschiedlichen Gründen unwirksam sein kann, dass das Finanzamt dies aber nicht zu prüfen braucht! Der geschäftsmäßige Erwerb von Steuererstattungsansprüchen ist nur Kreditinstituten (Banken und Sparkassen) im Rahmen von Sicherungsabtretungen gestattet. Die Abtretung an andere Unternehmen und Privatpersonen ist nur zulässig, wenn diese nicht geschäftsmäßig handeln. Haben Sie z.B. Ihren Anspruch an eine Privatperson abgetreten, die den Erwerb von Steuererstattungsansprüchen geschäftsmäßig betreibt, dann ist die Abtretung unwirksam. Hat aber das Finanzamt den Erstattungsbetrag bereits an den / die von Ihnen angegebenen neuen Gläubiger ausgezahlt, dann kann es nicht mehr in Anspruch genommen werden, das heißt: Sie haben selbst dann keinen Anspruch mehr gegen das Finanzamt auf den Erstattungsanspruch, wenn die Abtretung nicht wirksam ist."]
[]
[]
[{"$nulls":4},"Abtretungen / Verpfändungen können gem. § 46 Abs. 2 AO dem Finanzamt erst dann wirksam angezeigt werden, wenn der abgetretene / verpfändete Erstattungsanspruch entstanden ist. Der Erstattungsanspruch entsteht nicht vor Ablauf des Besteuerungszeitraums (bei der Einkommensteuer / Lohnsteuer: grundsätzlich Kalenderjahr; bei der Umsatzsteuer: Monat, Kalendervierteljahr bzw. Kalenderjahr)."]
[]
[{"$nulls":4},"Die Anzeige ist an das für die Besteuerung des / der Abtretenden / Verpfändenden zuständige Finanzamt zu richten. So ist z.B. für den Erstattungsanspruch aus einer  Einkommensteuer-Veranlagung das Finanzamt zuständig, in dessen Bereich der / die Abtretende / Verpfändende seinen / ihren Wohnsitz hat."]
[]
[]
[{"$nulls":4},"Bitte beachten Sie, dass neben den beteiligten Personen bzw. Gesellschaften auch der abgetretene / verpfändete Erstattungsanspruch für die Finanzbehörde zweifelsfrei erkennbar sein muss. Die Angaben in Abschnitt III. der Anzeige dienen dazu, die gewünschte Abtretung / Verpfändung schnell und problemlos ohne weitere Rückfragen erledigen zu können!"]
[]
[{"$nulls":4},"Die Abtretungs- / Verpfändungsanzeige ist sowohl von dem / der Abtretenden / Verpfändenden als auch von dem / der Abtretungsempfänger(in) / Pfändungsgläubiger(in) zu unterschreiben. Dies gilt z.B. auch, wenn der / die zeichnungsberechtigte Vertreter(in) einer abtretenden juristischen Person (z.B. GmbH) oder sonstigen Gesellschaft und der / die Abtretungsempfänger(in) / Pfandgläubiger(in) personengleich sind (2 Unterschriften)."]
[]
[]
[null,null,"VI."]
[]
[{"$nulls":3},"1. Abtretende(r) / Verpfänder(in) lt. Abschnitt I. - Persönliche Unterschrift -"]
[]
[{"$nulls":4},"Ort, Datum"]
[]
[]
[{"$nulls":4},"(Werden bei einer Einkommensteuer-Zusammenveranlagung die Ansprüche beider Ehegatten/Lebenspartner abgetreten, ist unbedingt erforderlich, dass beide Ehegatten/Lebenspartner persönlich unterschreiben.)"]
[]
[{"$nulls":3},"2. Abtretungsempfänger(in) / Pfandgläubiger(in) lt. Abschnitt II. - Unterschrift unbedingt erforderlich -"]
[]
[{"$nulls":4},"Ort, Datum"]

{"sheet":"Attribute","index":2,"n_rows":6,"n_cols":3,"rows_kept":6,"hidden":true}
["KAW-Variable","Wert","Bezeichnung"]
["KAW020001",{"$f":"IF(Mandantennummer=\"\",\"\",Mandantennummer)","v":""},"Nummer"]
["KAW010101",{"$f":"IF(FirstRun=\"\",\"\",YEAR(FirstRun))","v":2017},"Jahr"]
["KAW010102",{"$f":"IF(FirstRun=\"\",\"\",MONTH(FirstRun))","v":4},"Monat"]
["KAW010103","Abtretungs- / Verpfändungsanzeige","Beschreibung"]
["KAW010105","Abtretungsanzeige, Verpfändungsanzeige","Stichworte"]

{"sheet":"Drucken","index":3,"n_rows":3,"n_cols":12,"rows_kept":3,"hidden":true}
["Sheetname","Header","Caption","Checked","Druck","Linebreak","WithBlankSheet","BlankSheetName","Seiten","Drucker","BeraterMandant","Duplex"]
["Seite 1","Header",null,"true",true,{"$nulls":3},1,"EVA Kyocera TASKalfa 3501i KX auf Ne05:",true,true]
["Seite 2","Header2",null,"true",true,{"$nulls":3},1]

{"sheet":"Eintragung","index":4,"n_rows":39,"n_cols":18,"rows_kept":39,"hidden":true}
["Art","Person","Betrieb","VF","Quelle / Ziel","Wert","Ausg. VF",null,"Wert 1","Wert 2","Wert 3","Wert 4","Wert 5","Wert 6","Wert 7","Wert 8","Wert 9","Wert 10"]
["ZMSD","$Mandant.Nummer","$Mandant.Nummer",null,"Mandantennummer"]
["ZMSD","$Steuerpflichtiger.Hauptfinanzamt.Info.Bezeichnung1","$Betrieb.Hauptfinanzamt.Info.Bezeichnung1",null,"FA_Name"]
["ZMSD","$Steuerpflichtiger.Hauptfinanzamt.Info.Korrespondenz.Strasse","$Betrieb.Hauptfinanzamt.Info.Korrespondenz.Strasse",null,"FA_Straße"]
["ZMSD","$Steuerpflichtiger.Hauptfinanzamt.Info.Korrespondenz.PLZ","$Betrieb.Hauptfinanzamt.Info.Korrespondenz.PLZ",null,"FA_Postleitzahl_Neu"]
["ZMSD","$Steuerpflichtiger.Hauptfinanzamt.Info.Korrespondenz.Postfach","$Betrieb.Hauptfinanzamt.Info.Korrespondenz.Postfach",null,"FA_Postfach",""]
["ZMSD","$Steuerpflichtiger.Hauptfinanzamt.Info.Korrespondenz.Ort","$Betrieb.Hauptfinanzamt.Info.Korrespondenz.Ort",null,"FA_Ort_Postfach",""]
["ZMSD","$Steuerpflichtiger.Hauptfinanzamt.Steuernummer","$Betrieb.Hauptfinanzamt.Steuernummer",null,"FA_Steuer_Nr.",""]
["ZMSD","$Steuerpflichtiger.TitelAkademischerGrad","NA",null,"Titel",""]
["ZMSD","$Steuerpflichtiger.Nachname","$Betrieb.Unternehmensbezeichnung",null,"Name",""]
["ZMSD","$Steuerpflichtiger.Vorname","NA",null,"Vorname",""]
["ZMSD","$Steuerpflichtiger.PersoenlicheDaten.Geburt.Datum","NA",null,"Geburtsdatum__TTMMJJ_",""]
["ZMSD","$Ehegatte.TitelAkademischerGrad","NA",null,"Eg_Titel",""]
["ZMSD","$Ehegatte.Nachname","NA",null,"Eg_Name",""]
["ZMSD","$Ehegatte.Vorname","NA",null,"Eg_Vorname",""]
["ZMSD","$Ehegatte.PersoenlicheDaten.Geburt.Datum","NA",null,"Eg_Geburtsdatum__TTMMJJ_",""]
["ZMSD","$Steuerpflichtiger.Hauptstrasse.Strasse","$Betrieb.Hauptstrasse.Strasse",null,"Straße",""]
["ZMSD","$Steuerpflichtiger.Hauptstrasse.PLZ","$Betrieb.Hauptstrasse.PLZ",null,"Postleitzahl_Inland_Neu",""]
["ZMSD","$Steuerpflichtiger.Hauptstrasse.Ort","$Betrieb.Hauptstrasse.Ort",null,"Ort",""]
["ZMSD","$Steuerpflichtiger.Hauptpostfach.Postfach","$Betrieb.Hauptpostfach.Postfach",null,"Postfach",""]
["ZMSD","$Steuerpflichtiger.Hauptpostfach.PLZ","$Betrieb.Hauptpostfach.PLZ",null,"Postleitzahl_für_Postfach",""]
["ZMSD","$Steuerpflichtiger.Hauptpostfach.Ort","$Betrieb.Hauptpostfach.Ort",null,"Ort_für_Postfach",""]
["COPY",{"$nulls":3},"Z_FAName",{"$f":"IF(FA_Name=\"\",\"\",FA_Name)","v":""}]
["COPY",{"$nulls":3},"Z_FAAnschrift",{"$f":"IF(FA_Postfach=\"\",IF(FA_Straße=\"\",\"\",FA_Straße),\"Postfach \" & FA_Postfach)","v":""}]
["COPY",{"$nulls":3},"Z_FAAnschrift1",{"$f":"\"\"","v":""}]
["COPY",{"$nulls":3},"Z_FAPLZ",{"$f":"IF(FA_Postleitzahl_Neu=\"\",\"\",FA_Postleitzahl_Neu)","v":""}]
["COPY",{"$nulls":3},"Z_FAOrt",{"$f":"IF(FA_Ort_Postfach=\"\",\"\",FA_Ort_Postfach)","v":""}]
["COPY",{"$nulls":3},"Z_Name",{"$f":"IF(Titel=\"\",\"\",Titel & \" \") & IF(Name=\"\",\"\",Name)","v":""}]
["COPY",{"$nulls":3},"Z_Name1",{"$f":"\"\"","v":""}]
["COPY",{"$nulls":3},"Z_Name2",{"$f":"\"\"","v":""}]
["COPY",{"$nulls":3},"Z_Vorname",{"$f":"IF(Vorname=\"\",\"\",Vorname)","v":""}]
["COPY",{"$nulls":3},"Z_Geburtsdatum",{"$f":"IF(Geburtsdatum__TTMMJJ_=\"\",\"\",datumkonvert(Geburtsdatum__TTMMJJ_))","v":""}]
["COPY",{"$nulls":3},"Z_SteuerNr",{"$f":"IF(FA_Steuer_Nr.=\"\",\"\", FA_Steuer_Nr.)","v":""}]
["COPY",{"$nulls":3},"Z_EgName",{"$f":"IF(Eg_Titel=\"\",\"\",Eg_Titel & \" \") & IF(Eg_Name=\"\",\"\",Eg_Name)","v":""}]
["COPY",{"$nulls":3},"Z_EgVorname",{"$f":"IF(Eg_Vorname=\"\",\"\",Eg_Vorname)","v":""}]
["COPY",{"$nulls":3},"Z_EgGeburtsdatum",{"$f":"IF(Eg_Geburtsdatum__TTMMJJ_=\"\",\"\",datumkonvert(Eg_Geburtsdatum__TTMMJJ_))","v":""}]
["COPY",{"$nulls":3},"Z_Anschrift",{"$f":"IF(Postfach=\"\",IF(Straße=\"\",\"\",Straße),\"Postfach \" & Postfach)","v":""}]
["COPY",{"$nulls":3},"Z_PLZOrt",{"$f":"IF(Postfach=\"\",IF(Postleitzahl_Inland_Neu=\"\",\"\",Postleitzahl_Inland_Neu & \" \") & IF(Ort=\"\",\"\",Ort),IF(Postleitzahl_für_Postfach=\"\",\"\",Postleitzahl_für_Postfach & \" \") & IF(Ort_für_Postfach=\"\",\"\",Ort_für_Postfach))","v":""}]
["COPY",{"$nulls":3},"Z_OrtDatum",{"$f":"IF(Ort=\"\",\"\",Ort & \", \") & TEXT(TODAY(),\"TT.MM.JJJJ\")","v":"06.04.2017"}]

{"sheet":"Kanzleidaten","index":5,"n_rows":20,"n_cols":3,"rows_kept":20,"hidden":true}
["Aktion","Quelle / Ziel","Wert"]
["KANZLEI","KD_Bezeichnung","Steuerkanzlei Stefan Penka"]
["KANZLEI","KD_Bezeichnung1",""]
["KANZLEI","KD_Straße","Cranachweg 3"]
["KANZLEI","KD_Plz","93051"]
["KANZLEI","KD_Ort","Regensburg"]
["KANZLEI","KD_Telefon"]
["KANZLEI","KD_Fax","0941/59540-13"]
["KANZLEI","KD_Email",""]
["KANZLEI","KD_Bank",""]
["KANZLEI","KD_IBAN",""]
["KANZLEI","KD_BIC",""]
["COPY","B_KDBezeichnung_Copy",{"$f":"IF(KD_Bezeichnung=\"\",\"\",KD_Bezeichnung & \" \") & IF(KD_Bezeichnung1=\"\",\"\",KD_Bezeichnung1)","v":"Steuerkanzlei Stefan Penka "}]
["COPY","B_KDAnschrift_Copy",{"$f":"IF(KD_Straße=\"\",\"\",KD_Straße)","v":"Cranachweg 3"}]
["COPY","B_KDPLZOrt_Copy",{"$f":"IF(KD_PLZ=\"\",\"\",KD_PLZ & \" \") & IF(KD_Ort=\"\",\"\",KD_Ort)","v":"93051 Regensburg"}]
["COPY","B_KDBankName_Copy",{"$f":"IF(KD_Bank=\"\",\"\",KD_Bank)","v":""}]
["COPY","B_KDIBAN_Copy",{"$f":"IF(KD_IBAN=\"\",\"\",KD_IBAN)","v":""}]
["COPY","B_KDBIC_Copy",{"$f":"IF(KD_BIC=\"\",\"\",KD_BIC)","v":""}]
["COPY","B_KDAbweicher_Copy",{"$f":"\"\"","v":""}]
["COPY","B_KDOrtDatum"]

{"sheet":"Stammdaten","index":6,"n_rows":8,"n_cols":2,"rows_kept":8,"hidden":true}
["Stammdaten"]
["ToolName","Neuanlage eines Mandats"]
["ToolVersion","V.4.2"]
["ToolDatum","(10.11.2016)"]
["ToolInfo",{"$f":"ToolName & \" \" & ToolVersion & \" \" & ToolDatum","v":"Neuanlage eines Mandats V.4.2 (10.11.2016)"}]
["Eingabekontrolle",true]
["Header",{"$f":"IF(Z_Name=\"\",IF(Z_SteuerNr=\"\",\"\",Z_SteuerNr),IF(Z_SteuerNr=\"\",Z_Name,Z_Name & \" / \" & Z_SteuerNr))","v":""}]
["FirstRun","06.04.2017"]